bitfinex/quotes_SOLUSD_20250805
["timestamp","ask_amount","ask_price","bid_price","bid_amount"]
[1754359343765,5.08598282,168.49,168.45,5.68598282]
[1754359343958,5.75598282,168.5,168.46,5.62598282]
[1754359344158,0.67,168.5,168.46,5.62598282]
[1754359345085,5.08598282,168.51,168.47,5.93577491]
[1754359345285,5.75598282,168.52,168.47,11.56175773]
[1754359345498,5.75598282,168.52,168.47,98.83175773]
[1754359345676,0.67,168.51,168.47,98.83175773]
[1754359345989,5.08598282,168.52,168.47,93.74577491]
[1754359346297,5.08598282,168.52,168.47,98.83175773]
[1754359346495,0.67,168.51,168.48,5.08598282]
[1754359346794,0.67,168.51,168.48,87.27]
[1754359346974,0.67,168.51,168.48,92.35598282]
[1754359347974,47.56305035,168.55,168.49,5.93507033]
[1754359348298,0.67,168.52,168.49,5.93507033]
[1754359350991,0.69,168.51,168.48,93.20530709]
[1754359351164,0.69,168.5,168.48,93.20530709]
[1754359352494,5.77598282,168.49,168.48,87.27]
[1754359353673,0.69,168.49,168.48,87.27]
[1754359353874,5.77598282,168.49,168.48,87.27]
[1754359354795,5.77598282,168.49,168.45,0.06]
[1754359354979,0.69,168.51,168.46,5.62598282]
[1754359355180,5.77598282,168.51,168.46,5.62598282]
[1754359355383,0.69,168.5,168.46,5.62598282]
[1754359355994,5.08598282,168.52,168.47,5.08598282]
[1754359356176,0.69,168.51,168.47,5.08598282]
[1754359357190,5.08598282,168.51,168.46,6.47582425]
[1754359357406,0.69,168.5,168.46,11.56180707]
[1754359358006,5.11598282,168.55,168.49,5.08598282]
[1754359358201,0.72,168.55,168.51,5.08598282]
[1754359358398,0.72,168.55,168.52,5.08598282]
[1754359358703,0.03,168.55,168.54,5.08598282]
[1754359359800,0.03,168.55,168.54,98.28929242]
[1754359360102,0.03,168.55,168.54,92.35598282]
[1754359363676,0.72,168.55,168.54,87.27]
[1754359363878,5.80598282,168.55,168.46,86.55]
[1754359364099,5.08598282,168.5,168.46,92.48610385]
[1754359364489,0.69,168.5,168.47,0.68]
[1754359364695,5.08598282,168.51,168.47,0.68]
[1754359365002,5.77598282,168.52,168.48,0.68]
[1754359365302,5.77598282,168.52,168.46,5.93610385]
[1754359365303,0.69,168.51,168.47,11.02159967]
[1754359365692,5.08598282,168.52,168.48,0.68]
[1754359365892,5.08598282,168.51,168.48,0.68]
[1754359367084,5.77598282,168.51,168.47,5.08598282]
[1754359367427,5.77598282,168.5,168.46,0.06]
[1754359367717,5.08598282,168.49,168.46,0.06]
[1754359368110,0.69,168.5,168.46,0.06]
[1754359368309,5.08598282,168.49,168.46,6.67611012]
[1754359368506,5.08598282,168.5,168.47,0.68]
[1754359368809,5.08598282,168.51,168.48,0.68]
[1754359369190,5.77598282,168.51,168.47,5.9356144]
[1754359369392,5.77598282,168.51,168.47,6.6156144]
[1754359371211,0.69,168.53,168.48,0.68]
[1754359371408,5.08598282,168.52,168.47,11.02159722]
[1754359371707,5.08598282,168.52,168.49,0.68]
[1754359372299,5.77598282,168.52,168.49,0.68]
[1754359372909,5.08598282,168.52,168.49,0.68]
[1754359373089,5.08598282,168.53,168.49,6.61500514]
[1754359373291,5.77598282,168.53,168.49,6.61500514]
[1754359374021,5.77598282,168.53,168.49,93.16500514]
[1754359374423,0.69,168.53,168.49,93.16500514]
[1754359374605,5.77598282,168.53,168.49,93.16500514]
[1754359375113,46.66598282,168.54,168.5,0.68]
[1754359375285,47.35598282,168.54,168.5,93.16461602]
[1754359375925,0.69,168.53,168.5,92.48461602]
[1754359377328,46.66598282,168.54,168.5,93.16461602]
[1754359377545,47.35598282,168.54,168.5,93.16461602]
[1754359378197,41.58,168.54,168.51,5.76598282]
[1754359378633,41.58,168.54,168.5,92.48461602]
[1754359378941,42.24,168.54,168.51,5.08598282]
[1754359379129,42.24,168.54,168.51,5.77598282]
[1754359379422,41.58,168.54,168.52,5.77598282]
[1754359379805,41.58,168.54,168.53,11.01964448]
[1754359380011,41.58,168.54,168.53,11.70964448]
[1754359380242,0.03,168.55,168.53,11.70964448]
[1754359380824,0.03,168.55,168.53,98.25964448]
[1754359381318,0.03,168.55,168.54,5.77598282]
[1754359383249,0.03,168.55,168.54,11.70929242]
[1754359385824,0.03,168.55,168.54,26.81550799]
[1754359386524,0.03,168.55,168.54,11.01929242]
[1754359387037,0.69,168.55,168.49,87.24]
[1754359387224,5.08598282,168.54,168.5,5.9347181]
[1754359387427,0.66,168.53,168.5,5.9347181]
[1754359387628,0.66,168.52,168.5,5.9347181]
[1754359388036,0.66,168.51,168.48,5.08598282]
[1754359388356,0.66,168.5,168.47,20.19219839]
[1754359388653,0.66,168.49,168.47,26.12792291]
[1754359388844,0.66,168.51,168.47,26.12792291]
[1754359389042,5.08598282,168.52,168.47,26.12792291]
[1754359389247,0.66,168.5,168.47,26.12792291]
[1754359390052,0.66,168.5,168.47,11.02170734]
[1754359390948,0.66,168.5,168.47,5.93572452]
[1754359391156,0.66,168.5,168.47,11.02170734]
[1754359392427,0.66,168.49,168.47,5.93572452]
[1754359393155,5.74598282,168.51,168.47,5.93572452]
[1754359393459,0.66,168.5,168.47,5.93572452]
[1754359393831,5.08598282,168.51,168.47,5.93572452]
[1754359394149,5.74598282,168.51,168.47,6.62572452]
[1754359394355,0.66,168.5,168.47,6.62572452]
[1754359394933,5.08598282,168.51,168.47,5.93572452]
[1754359395252,0.66,168.49,168.47,5.93572452]
[1754359395566,5.08598282,168.51,168.47,5.93572452]
[1754359395742,5.74598282,168.53,168.48,5.77598282]
[1754359395933,5.74598282,168.53,168.49,0.69]
[1754359396261,41.58,168.54,168.5,5.77598282]
[1754359396548,41.58,168.54,168.5,11.71056307]
[1754359396549,42.24,168.54,168.5,11.71056307]
[1754359397352,42.24,168.54,168.51,0.69]
[1754359397659,42.24,168.54,168.5,11.02056307]
[1754359397872,41.58,168.54,168.51,5.77598282]
[1754359398248,41.58,168.54,168.52,5.77598282]
[1754359398472,41.58,168.54,168.53,5.77598282]
[1754359399135,41.58,168.54,168.51,0.69]
[1754359399336,41.58,168.54,168.53,5.08598282]
[1754359399638,41.58,168.54,168.52,0.69]
[1754359399863,41.58,168.54,168.53,11.01964448]
[1754359400044,42.24,168.54,168.53,5.08598282]
[1754359400240,42.24,168.54,168.52,11.01987863]
[1754359402036,41.58,168.54,168.53,5.08598282]
[1754359402457,0.03,168.55,168.53,5.08598282]
[1754359402772,0.69,168.55,168.53,5.08598282]
[1754359403285,0.66,168.54,168.52,5.08598282]
[1754359403442,0.66,168.54,168.52,91.63598282]
[1754359403966,0.03,168.55,168.52,91.63598282]
[1754359404268,0.69,168.55,168.52,97.56985737]
[1754359405651,0.66,168.54,168.52,97.56985737]
[1754359406047,0.66,168.53,168.52,5.08598282]
[1754359406556,0.69,168.55,168.52,5.08598282]
[1754359406763,0.69,168.55,168.52,5.77598282]
[1754359407653,0.03,168.55,168.53,5.77598282]
[1754359407853,0.03,168.55,168.54,0.69]
[1754359408055,0.03,168.55,168.53,11.70932695]
[1754359408260,0.03,168.55,168.54,5.77598282]
[1754359409854,0.03,168.55,168.54,11.70929242]
[1754359412174,0.03,168.55,168.54,113.36550799]
[1754359412375,1e-08,168.55,168.54,113.36550799]
[1754359412580,1e-08,168.55,168.54,118.45149081]
[1754359413074,1e-08,168.55,168.54,119.04482177]
[1754359413277,0.03,168.59,168.55,111.82818121]
[1754359413460,0.03,168.59,168.58,5.08598282]
[1754359413664,0.03,168.59,168.54,14.833274]
[1754359413983,0.71,168.58,168.57,5.08598282]
[1754359415271,0.03,168.59,168.57,5.08598282]
[1754359415473,0.03,168.59,168.57,11.01823648]
[1754359415675,0.74,168.59,168.57,11.01823648]
[1754359416055,0.03,168.59,168.58,5.08598282]
[1754359416979,0.74,168.59,168.57,5.08598282]
[1754359417174,0.71,168.58,168.55,5.93295757]
[1754359417350,0.71,168.58,168.57,5.08598282]
[1754359417548,0.03,168.59,168.57,5.08598282]
[1754359417749,0.74,168.59,168.58,5.08598282]
[1754359417987,0.74,168.59,168.57,5.08598282]
[1754359418374,0.74,168.59,168.57,11.01822752]
[1754359419451,0.03,168.59,168.57,11.01822752]
[1754359419655,0.03,168.59,168.58,5.08598282]
[1754359419883,0.03,168.59,168.57,5.9322447]
[1754359420084,0.03,168.59,168.58,5.08598282]
[1754359420977,0.03,168.59,168.58,11.01788458]
[1754359421313,0.03,168.59,168.58,97.56788458]
[1754359422778,0.03,168.59,168.58,98.27788458]
[1754359423188,0.03,168.61,168.59,0.47]
[1754359423380,0.03,168.61,168.59,5.55598282]
[1754359423586,0.03,168.61,168.6,5.08598282]
[1754359424703,0.74,168.61,168.6,5.08598282]
[1754359425083,0.03,168.61,168.6,5.08598282]
[1754359425285,0.03,168.61,168.6,11.01718092]
[1754359426599,0.03,168.61,168.6,11.72718092]
[1754359429375,0.03,168.61,168.6,6.6411981]
[1754359429575,0.03,168.61,168.6,11.72718092]
[1754359430613,0.03,168.61,168.6,6.6411981]
[1754359430905,0.74,168.61,168.59,0.47]
[1754359431088,5.82598282,168.61,168.59,0.47]
[1754359431291,0.71,168.6,168.59,0.47]
[1754359433198,0.74,168.61,168.59,6.40147081]
[1754359433405,0.03,168.61,168.59,11.48745363]
[1754359433790,0.03,168.61,168.59,12.19745363]
[1754359434589,0.03,168.61,168.59,11.48745363]
[1754359434999,0.03,168.61,168.59,12.19745363]
[1754359435498,0.03,168.61,168.6,5.79598282]
[1754359436600,0.03,168.61,168.6,11.72718092]
[1754359438825,0.03,168.61,168.6,11.01718092]
[1754359439004,0.69,168.61,168.6,11.01718092]
[1754359439201,0.69,168.61,168.6,5.9311981]
[1754359440217,0.69,168.61,168.6,11.01718092]
[1754359440418,0.03,168.61,168.6,11.01718092]
[1754359441318,0.03,168.61,168.6,11.66718092]
[1754359442109,0.03,168.61,168.6,98.21718092]
[1754359442604,0.03,168.61,168.6,97.56718092]
[1754359443808,0.03,168.61,168.6,98.21718092]
[1754359445222,0.03,168.61,168.6,97.56718092]
[1754359447746,0.03,168.61,168.6,92.4811981]
[1754359447917,0.03,168.61,168.6,97.56718092]
[1754359448927,0.03,168.61,168.6,92.4811981]
[1754359449140,0.69,168.61,168.59,0.47]
[1754359449508,0.66,168.6,168.59,0.47]
[1754359450430,0.03,168.61,168.59,11.48747823]
[1754359450614,0.69,168.61,168.59,11.48747823]
[1754359451019,0.03,168.61,168.59,11.48747823]
[1754359451608,0.69,168.61,168.59,6.40149541]
[1754359451944,0.69,168.61,168.59,11.48747823]
[1754359452435,0.03,168.61,168.59,11.48747823]
[1754359452609,0.03,168.61,168.6,5.08598282]
[1754359453338,0.03,168.61,168.6,11.01718092]
[1754359453531,0.03,168.61,168.59,6.46145362]
[1754359453720,0.69,168.61,168.59,11.54743644]
[1754359454826,0.03,168.61,168.59,11.54743644]
[1754359455841,0.03,168.61,168.6,5.08598282]
[1754359456224,0.03,168.61,168.6,5.73598282]
[1754359457340,0.03,168.61,168.6,11.66718092]
[1754359459643,0.03,168.61,168.6,11.01718092]
[1754359459846,0.03,168.61,168.6,97.56718092]
[1754359461750,0.69,168.61,168.59,0.53]
[1754359464250,0.66,168.6,168.59,0.53]
[1754359466150,0.03,168.61,168.59,6.46154991]
[1754359466456,0.69,168.61,168.59,0.53]
[1754359467047,0.66,168.6,168.59,0.53]
[1754359468656,0.03,168.61,168.59,6.46148765]
[1754359469046,0.03,168.61,168.59,12.23747047]
[1754359471035,0.03,168.61,168.6,5.77598282]
[1754359471636,0.03,168.61,168.6,93.1711981]
[1754359471835,0.03,168.61,168.6,98.25718092]
[1754359473548,0.03,168.61,168.6,97.56718092]
[1754359474841,0.03,168.61,168.6,91.63598282]
[1754359479273,0.03,168.61,168.6,86.55]
[1754359479575,0.03,168.61,168.6,91.63598282]
[1754359480485,0.03,168.61,168.6,86.55]
[1754359483365,0.03,168.61,168.6,91.63598282]
[1754359483758,0.03,168.61,168.6,98.25718092]
[1754359486877,0.03,168.61,168.6,113.36339649]
[1754359487079,1e-08,168.61,168.6,113.36339649]
[1754359487274,1e-08,168.61,168.6,114.09867787]
[1754359490093,1e-08,168.62,168.61,0.14216157]
[1754359490276,1e-08,168.62,168.61,47.41814439]
[1754359490473,1e-08,168.63,168.62,41.10621557]
[1754359490673,1e-08,168.63,168.62,139.11123067]
[1754359490879,0.03,168.66,168.63,0.14216157]
[1754359491173,0.03,168.66,168.65,20.19219839]
[1754359491487,0.03,168.66,168.65,20.88219839]
[1754359492090,0.03,168.66,168.65,26.81163805]
[1754359492286,0.2,168.71,168.66,15.10621557]
[1754359492483,0.2,168.71,168.66,148.93219839]
[1754359494386,0.2,168.71,168.66,154.86128649]
[1754359495989,0.2,168.71,168.66,155.00344806]
[1754359496295,0.2,168.71,168.67,20.88219839]
[1754359496500,0.2,168.71,168.67,26.81093497]
[1754359497484,0.92,168.71,168.67,26.81093497]
[1754359497997,0.72,168.69,168.67,21.03495215]
[1754359498183,0.92,168.68,168.67,154.15093497]
[1754359499481,0.92,168.68,168.67,139.0447194]
[1754359499698,0.92,168.68,168.66,11.01501421]
[1754359499894,0.67,168.67,168.66,52.49501421]
[1754359500101,0.67,168.67,168.66,41.48]
[1754359500501,0.67,168.67,168.65,52.49535156]
[1754359500808,0.67,168.67,168.66,5.08598282]
[1754359501013,0.2,168.68,168.66,5.08598282]
[1754359501580,0.67,168.67,168.66,5.08598282]
[1754359501775,0.67,168.67,168.65,47.40936874]
[1754359501982,0.67,168.67,168.66,5.08598282]
[1754359502313,0.2,168.68,168.66,5.08598282]
[1754359502603,0.87,168.68,168.67,5.08598282]
[1754359503427,0.87,168.68,168.67,11.0147194]
[1754359504912,0.87,168.68,168.67,5.08598282]
[1754359505109,0.87,168.68,168.65,47.40932854]
[1754359505320,0.67,168.67,168.66,5.08598282]
[1754359506511,0.67,168.67,168.64,41.48]
[1754359506711,0.67,168.67,168.63,46.56598282]
[1754359506897,0.67,168.67,168.63,5.08598282]
[1754359507298,0.67,168.67,168.64,5.08598282]
[1754359507800,0.67,168.67,168.63,5.92990521]
[1754359508003,0.67,168.67,168.63,11.01588803]
[1754359508492,0.67,168.67,168.64,5.08598282]
[1754359509913,0.67,168.67,168.64,11.01574835]
[1754359510216,0.67,168.67,168.64,97.56574835]
[1754359511221,0.67,168.67,168.64,91.63598282]
[1754359512106,5.08598282,168.65,168.62,86.55]
[1754359512312,6.59883105,168.67,168.61,0.47]
[1754359512313,5.08598282,168.63,168.61,0.47]
[1754359512484,5.08598282,168.62,168.61,0.47]
[1754359512812,5.75598282,168.62,168.61,0.47]
[1754359513718,0.67,168.62,168.61,0.47]
[1754359514580,5.92953911,168.65,168.61,0.47]
[1754359514785,0.67,168.63,168.61,0.47]
[1754359514984,0.67,168.62,168.61,0.47]
[1754359521318,11.68647742,168.62,168.61,0.47]
[1754359522318,29.50279142,168.62,168.61,0.47]
[1754359522626,23.57229682,168.62,168.61,0.47]
[1754359522803,5.08598282,168.62,168.61,0.47]
[1754359523118,17.816314,168.63,168.61,0.47]
[1754359523325,0.67,168.64,168.61,0.47]
[1754359523497,22.90018082,168.65,168.61,7.08079895]
[1754359523696,22.90018082,168.65,168.62,0.68]
[1754359523921,5.75598282,168.65,168.62,0.68]
[1754359524109,12.15678182,168.65,168.62,0.68]
[1754359524718,26.0,168.66,168.62,5.76598282]
[1754359524921,38.15678182,168.66,168.62,0.68]
[1754359525301,0.67,168.65,168.62,0.68]
[1754359526808,32.400799,168.66,168.62,98.24640111]
[1754359527129,42.15,168.67,168.65,5.08598282]
[1754359527130,41.48,168.67,168.65,5.08598282]
[1754359527425,41.01,168.67,168.65,5.08598282]
[1754359528034,41.01,168.67,168.65,5.76598282]
[1754359528219,41.01,168.67,168.66,11.69507092]
[1754359528413,0.87,168.68,168.66,5.08598282]
[1754359528915,0.86,168.68,168.66,5.08598282]
[1754359529634,0.66,168.67,168.63,5.08598282]
[1754359530136,0.66,168.66,168.63,5.74598282]
[1754359530505,0.66,168.67,168.63,5.74598282]
[1754359531524,0.66,168.67,168.63,11.01608976]
[1754359531827,0.2,168.68,168.64,5.74598282]
[1754359532128,0.2,168.68,168.64,0.66]
[1754359532308,0.86,168.68,168.64,5.74598282]
[1754359532507,0.86,168.68,168.64,0.66]
[1754359532710,0.86,168.68,168.64,5.74598282]
[1754359533324,0.66,168.67,168.64,5.08598282]
[1754359533723,0.66,168.67,168.64,91.63598282]
[1754359533930,0.66,168.66,168.64,86.55]
[1754359534932,17.80214091,168.68,168.64,86.55]
[1754359535132,0.66,168.67,168.64,86.55]
[1754359535436,0.66,168.66,168.64,86.55]
[1754359536019,17.14214091,168.68,168.64,86.55]
[1754359536224,0.66,168.67,168.64,86.55]
[1754359536638,0.66,168.67,168.64,87.21]
[1754359538215,0.66,168.67,168.64,92.29598282]
[1754359538626,6.12773,168.68,168.65,5.08598282]
[1754359538825,0.2,168.68,168.66,0.66]
[1754359539442,0.2,168.68,168.67,0.66]
[1754359539638,0.2,168.68,168.67,87.21]
[1754359540025,0.2,168.68,168.67,92.29598282]
[1754359540733,0.2,168.68,168.67,98.2247194]
[1754359542451,0.2,168.68,168.67,139.7047194]
[1754359545142,0.03,168.69,168.68,15.10621557]
[1754359545444,0.03,168.69,168.68,20.85219839]
[1754359546229,0.03,168.69,168.68,26.78058349]
[1754359546434,0.2,168.71,168.7,26.0]
[1754359546738,0.2,168.71,168.7,72.54598282]
[1754359547048,0.2,168.71,168.7,73.20598282]
[1754359547547,0.2,168.71,168.7,79.13366509]
[1754359550135,0.2,168.71,168.7,94.23988066]
[1754359551453,0.2,168.71,168.7,180.78988066]
[1754359556133,0.2,168.71,168.7,165.02366509]
[1754359556338,0.2,168.71,168.7,180.78988066]
[1754359557256,0.2,168.71,168.7,180.12988066]
[1754359562167,0.2,168.71,168.7,180.83988066]
[1754359563965,0.2,168.72,168.71,101.65621556]
[1754359564271,0.2,168.72,168.71,112.5381812]
[1754359564478,0.2,168.72,168.71,118.46551212]
[1754359566553,1e-08,168.73,168.72,0.14216157]
[1754359566752,1e-08,168.73,168.72,93.57034278]
[1754359566942,1e-08,168.76,168.74,0.14216157]
[1754359567168,1e-08,168.76,168.75,47.23598282]
[1754359567561,1e-08,168.76,168.75,53.16190874]
[1754359569955,1e-08,168.76,168.75,165.71190873]
[1754359573078,1e-08,168.76,168.75,154.96028587]
[1754359573656,1e-08,168.78,168.77,41.24837714]
[1754359573960,1e-08,168.78,168.77,87.77435996]
[1754359574154,1e-08,168.78,168.77,88.48435996]
[1754359574657,0.2,168.85,168.78,15.10621557]
[1754359574855,0.2,168.85,168.84,26.1149655]
[1754359575069,0.2,168.85,168.84,67.5349655]
[1754359578558,0.88,168.85,168.84,46.50598282]
[1754359578752,0.88,168.85,168.84,52.42874993]
[1754359578958,0.88,168.85,168.84,47.34276711]
[1754359579281,0.88,168.85,168.82,5.92338748]
[1754359579484,0.68,168.84,168.82,47.34338748]
[1754359579683,0.68,168.84,168.82,52.4293703]
[1754359579987,0.68,168.84,168.82,138.97937029]
[1754359580378,0.68,168.84,168.82,52.4293703]
[1754359581169,0.2,168.85,168.83,5.08598282]
[1754359581769,0.68,168.84,168.82,5.92338748]
[1754359581965,0.68,168.84,168.83,41.42]
[1754359582493,0.68,168.84,168.83,47.34311792]
[1754359582784,0.68,168.84,168.83,41.42]
[1754359582972,0.68,168.84,168.83,46.50598282]
[1754359585257,0.68,168.84,168.83,41.42]
[1754359585464,0.68,168.84,168.81,52.40980043]
[1754359586862,0.2,168.85,168.81,52.40980043]
[1754359587090,0.68,168.83,168.81,52.40980043]
[1754359587472,0.68,168.83,168.82,11.0094516]
[1754359588667,0.68,168.83,168.82,5.92346878]
[1754359588996,0.68,168.83,168.81,52.40972342]
[1754359589215,0.2,168.85,168.81,52.40972342]
[1754359589399,0.71,168.82,168.81,52.40972342]
[1754359589697,0.71,168.84,168.81,52.40972342]
[1754359589991,0.71,168.84,168.82,5.08598282]
[1754359590578,0.71,168.84,168.82,11.00919858]
[1754359591699,0.71,168.84,168.82,5.92321576]
[1754359591990,0.71,168.84,168.82,11.00919858]
[1754359592196,0.71,168.84,168.82,5.92321576]
[1754359592380,0.71,168.84,168.82,11.00919858]
[1754359594190,0.71,168.84,168.82,5.08598282]
[1754359594379,0.71,168.83,168.81,11.00970246]
[1754359595004,0.71,168.82,168.78,86.54999999]
[1754359595308,0.71,168.82,168.79,41.4]
[1754359595874,5.08598282,168.81,168.76,20.19219839]
[1754359596076,6.63367031,168.82,168.72,5.92697961]
[1754359596077,5.08598282,168.77,168.72,5.92697961]
[1754359596325,0.71,168.76,168.73,41.4]
[1754359596611,0.71,168.75,168.73,41.4]
[1754359597200,0.71,168.75,168.73,47.32642078]
[1754359597911,12.55813911,168.8,168.73,47.32642078]
[1754359598126,5.08598282,168.77,168.73,47.32642078]
[1754359598298,0.71,168.77,168.73,52.4124036]
[1754359598884,5.08598282,168.78,168.73,52.4124036]
[1754359599108,0.71,168.77,168.73,53.1324036]
[1754359599289,0.71,168.79,168.75,5.08598282]
[1754359599636,5.08598282,168.8,168.76,0.72]
[1754359599928,0.71,168.79,168.76,0.72]
[1754359600313,5.08598282,168.8,168.76,0.72]
[1754359600485,5.79598282,168.8,168.76,0.72]
[1754359600899,0.71,168.79,168.76,5.08598282]
[1754359601099,0.71,168.79,168.77,5.92522367]
[1754359602190,5.08598282,168.81,168.77,5.92522367]
[1754359602504,0.71,168.81,168.78,0.72]
[1754359602695,5.08598282,168.83,168.78,5.80598282]
[1754359602928,0.71,168.83,168.79,5.08598282]
[1754359603217,0.71,168.82,168.79,5.08598282]
[1754359603619,0.71,168.81,168.77,47.32522367]
[1754359603798,5.08598282,168.8,168.76,5.9254754]
[1754359604005,5.79598282,168.79,168.76,5.9854754]
[1754359604201,5.08598282,168.79,168.76,5.9854754]
[1754359604521,5.79598282,168.78,168.76,0.06]
[1754359604823,5.08598282,168.77,168.76,0.06]
[1754359605128,5.79598282,168.77,168.76,0.06]
[1754359605419,5.93814439,168.77,168.67,77.89575251]
[1754359605620,5.08598282,168.72,168.67,72.80976969]
[1754359605793,5.79598282,168.71,168.67,72.80976969]
[1754359605983,5.79598282,168.71,168.67,77.89575251]
[1754359605984,0.71,168.71,168.67,77.89575251]
[1754359606184,0.71,168.71,168.67,77.17575251]
[1754359606385,5.08598282,168.72,168.68,6.64836172]
[1754359606704,0.71,168.72,168.68,6.64836172]
[1754359606896,5.79598282,168.72,168.68,6.64836172]
[1754359607319,5.79598282,168.72,168.69,0.72]
[1754359607634,5.08598282,168.73,168.69,0.72]
[1754359607935,5.79598282,168.73,168.69,0.72]
[1754359608424,5.79598282,168.72,168.68,5.92836172]
[1754359608631,5.79598282,168.72,168.68,6.64836172]
[1754359609909,0.71,168.72,168.68,6.64836172]
[1754359610221,5.79598282,168.72,168.69,0.72]
[1754359611035,5.08598282,168.71,168.68,5.92836172]
[1754359611540,5.08598282,168.71,168.68,6.64836172]
[1754359611706,5.79598282,168.71,168.67,170.60441116]
[1754359611916,5.79598282,168.71,168.67,171.32441116]
[1754359612408,0.71,168.71,168.68,0.72]
[1754359612622,5.08598282,168.72,168.68,0.72]
[1754359612828,5.79598282,168.72,168.68,0.72]
[1754359613338,5.79598282,168.72,168.69,0.72]
[1754359613910,5.79598282,168.72,168.68,0.72]
[1754359614509,5.79598282,168.72,168.69,0.72]
[1754359615238,0.71,168.72,168.69,0.72]
[1754359615941,0.71,168.72,168.69,6.64781694]
[1754359616314,0.71,168.72,168.69,5.92781694]
[1754359616504,5.79598282,168.72,168.69,93.42781694]
[1754359617508,0.71,168.72,168.69,93.42781694]
[1754359617808,5.79598282,168.72,168.69,93.42781694]
[1754359618322,0.71,168.71,168.69,87.5]
[1754359619032,0.71,168.71,168.69,93.42795846]
[1754359619250,5.74598282,168.72,168.69,93.42795846]
[1754359621622,5.74598282,168.72,168.69,87.5]
[1754359621823,5.08598282,168.7,168.67,72.08976969]
[1754359622023,5.08598282,168.68,168.67,72.08976969]
[1754359622247,5.74598282,168.68,168.67,72.08976969]
[1754359623141,5.74598282,168.68,168.67,0.06]
[1754359623932,11.67436792,168.68,168.67,0.06]
[1754359627939,6.5883851,168.68,168.67,0.06]
[1754359628147,11.67436792,168.68,168.67,0.06]
[1754359629964,53.11436792,168.68,168.67,0.06]
[1754359630141,53.25652949,168.68,168.67,0.06]
[1754359630656,48.17054667,168.68,168.67,0.06]
[1754359630832,53.25652949,168.68,168.67,0.06]
[1754359632740,55.63175549,168.68,168.67,0.06]
[1754359634729,46.52598282,168.68,168.67,0.06]
[1754359635342,52.45436792,168.68,168.67,0.06]
[1754359635536,53.11436792,168.68,168.67,0.06]
[1754359636751,46.52598282,168.68,168.67,0.06]
[1754359637853,41.44,168.7,168.67,5.82598282]
[1754359638061,5.929667,168.74,168.69,5.08598282]
[1754359638252,41.44,168.73,168.7,5.76598282]
[1754359638436,41.44,168.73,168.71,0.68]
[1754359639160,41.44,168.73,168.7,0.68]
[1754359639949,41.44,168.73,168.71,0.68]
[1754359640343,41.44,168.73,168.7,5.08598282]
[1754359640550,41.44,168.73,168.69,11.69393054]
[1754359640551,42.1,168.73,168.69,11.69393054]
[1754359640748,42.1,168.73,168.7,0.68]
[1754359641334,41.44,168.73,168.7,0.68]
[1754359641749,41.44,168.73,168.71,0.68]
[1754359641942,41.44,168.73,168.7,5.76598282]
[1754359642156,41.44,168.73,168.71,0.68]
[1754359643171,41.44,168.73,168.72,0.68]
[1754359644163,41.44,168.73,168.7,11.01358585]
[1754359644164,41.44,168.73,168.7,11.69358585]
[1754359644349,41.44,168.73,168.7,11.01358585]
[1754359644649,41.44,168.73,168.71,0.68]
[1754359645267,41.44,168.73,168.69,11.69391179]
[1754359645456,0.66,168.72,168.69,11.69391179]
[1754359647074,41.44,168.73,168.7,0.68]
[1754359647443,41.44,168.73,168.7,5.76598282]
[1754359649047,42.14,168.73,168.7,87.5]
[1754359651471,41.44,168.73,168.7,99.20357617]